fUSD/lending_fUSD_20250609
["ID","MTS","AMOUNT","RATE_DAILY","PERIOD"]
[365168015,1749510747738,669.28,0.00016438,2]
[365168016,1749510747805,490.0,0.00016931,2]
[365168017,1749510747917,490.0,0.00016931,2]
[365168018,1749510747950,472.13555142,0.00016438,2]
[365168019,1749510748023,428.05850007,0.00017095,2]
[365168020,1749510748055,669.28,0.00016602,2]
[365168021,1749510748116,490.0,0.00017095,2]
[365168022,1749510748293,669.28,0.00016767,2]
[365168023,1749510748455,490.0,0.0001726,2]
[365168024,1749510748549,669.28,0.00016931,2]
[365168025,1749510748705,490.0,0.00017424,2]
[365168026,1749510748804,669.28,0.00017095,2]
[365168027,1749510749087,669.28,0.0001726,2]
[365168028,1749510749129,490.0,0.00017589,2]
[365168029,1749510749335,669.28,0.00017424,2]
[365168030,1749510749388,490.0,0.00017753,2]
[365168031,1749510749660,669.28,0.00017589,2]
[365168032,1749510749988,490.0,0.00017917,2]
[365168033,1749510750192,669.28,0.00017753,2]
[365168034,1749510750260,260.35954173,0.00016438,2]
[365168035,1749510750292,959.79,0.00016438,2]
[365168036,1749510750327,669.28,0.00017917,2]
[365168037,1749510750381,959.79,0.00016602,2]
[365168038,1749510750581,959.79,0.00016767,2]
[365168039,1749510750824,959.79,0.00016931,2]
[365168040,1749510751104,959.79,0.00017095,2]
[365168041,1749510751384,959.79,0.0001726,2]
[365168042,1749510751643,959.79,0.00017424,2]
[365168043,1749510751913,959.79,0.00017589,2]
[365168044,1749510752195,959.79,0.00017753,2]
[365168045,1749510752395,490.0,0.00016438,2]
[365168046,1749510752439,959.79,0.00017917,2]
[365168047,1749510752644,490.0,0.00016602,2]
[365168048,1749510753045,490.0,0.00016767,2]
[365168049,1749510753337,490.0,0.00016438,2]
[365168050,1749510753399,490.0,0.00016931,2]
[365168051,1749510753600,490.0,0.00016602,2]
[365168052,1749510753716,490.0,0.00016438,2]
[365168053,1749510753942,490.0,0.00016767,2]
[365168054,1749510754093,490.0,0.00017095,2]
[365168055,1749510754131,490.0,0.00016602,2]
[365168056,1749510754172,490.0,0.00016931,2]
[365168057,1749510754208,490.0,0.0001726,2]
[365168058,1749510754284,199.24637471,0.00016767,2]
[365168059,1749510754375,490.0,0.00017095,2]
[365168060,1749510754409,490.0,0.00016438,2]
[365168061,1749510754466,490.0,0.00017424,2]
[365168062,1749510754621,490.0,0.0001726,2]
[365168063,1749510754668,490.0,0.00016602,2]
[365168064,1749510754722,490.0,0.00017589,2]
[365168065,1749510754912,490.0,0.00016767,2]
[365168066,1749510754980,490.0,0.00017753,2]
[365168067,1749510755089,490.0,0.00017424,2]
[365168068,1749510755170,490.0,0.00016931,2]
[365168069,1749510755224,490.0,0.00017917,2]
[365168070,1749510755331,490.0,0.00017589,2]
[365168071,1749510755429,490.0,0.00017095,2]
[365168072,1749510755482,490.0,0.00016438,2]
[365168073,1749510755572,490.0,0.00017753,2]
[365168074,1749510756235,490.0,0.0001726,2]
[365168075,1749510756268,490.0,0.00016602,2]
[365168076,1749510756312,490.0,0.00017917,2]
[365168077,1749510756353,490.0,0.00017424,2]
[365168078,1749510756499,490.0,0.00017589,2]
[365168079,1749510756555,490.0,0.00017753,2]
[365168080,1749510756813,490.0,0.00017917,2]
[365168082,1749510758004,350.83418614,0.00016438,2]
[365168083,1749510758105,1172.48,0.00016438,2]
[365168084,1749510758145,490.0,0.00016767,2]
[365168085,1749510758384,490.0,0.00016931,2]
[365168086,1749510758431,1172.48,0.00016602,2]
[365168087,1749510758621,406.67372891,0.00017095,2]
[365168088,1749510758691,1172.48,0.00016767,2]
[365168089,1749510758724,490.0,0.00016438,2]
[365168090,1749510758757,490.0,0.00016438,2]
[365168091,1749510758935,490.0,0.00016602,2]
[365168092,1749510758970,490.0,0.00016602,2]
[365168093,1749510759074,1172.48,0.00016931,2]
[365168094,1749510759180,490.0,0.00016767,2]
[365168095,1749510759214,490.0,0.00016767,2]
[365168096,1749510759325,1172.48,0.00017095,2]
[365168097,1749510759433,490.0,0.00016931,2]
[365168098,1749510759468,490.0,0.00016931,2]
[365168099,1749510759573,1172.48,0.0001726,2]
[365168100,1749510759709,490.0,0.00017095,2]
[365168101,1749510759741,490.0,0.00017095,2]
[365168102,1749510759824,1172.48,0.00017424,2]
[365168103,1749510759915,490.0,0.0001726,2]
[365168104,1749510759961,490.0,0.0001726,2]
[365168105,1749510760117,1172.48,0.00017589,2]
[365168106,1749510760181,676.13,0.00016438,2]
[365168107,1749510760213,490.0,0.00017424,2]
[365168108,1749510760248,490.0,0.00017424,2]
[365168109,1749510760279,490.0,0.00016438,2]
[365168110,1749510760344,1172.48,0.00017753,2]
[365168111,1749510760396,676.13,0.00016602,2]
[365168112,1749510760506,490.0,0.00017589,2]
[365168113,1749510760576,490.0,0.00016438,2]
[365168114,1749510760609,1172.48,0.00017917,2]
[365168115,1749510760655,676.13,0.00016767,2]
[365168116,1749510760755,490.0,0.00017753,2]
[365168117,1749510760787,490.0,0.00017589,2]
[365168118,1749510760818,490.0,0.00016602,2]
[365168119,1749510760869,490.0,0.00016602,2]
[365168120,1749510761164,676.13,0.00016931,2]
[365168121,1749510761202,490.0,0.00017753,2]
[365168122,1749510761233,490.0,0.00017917,2]
[365168123,1749510761268,1165.11,0.00016438,2]
[365168124,1749510761299,490.0,0.00016767,2]
[365168125,1749510761335,490.0,0.00016767,2]
[365168126,1749510761375,294.72400047,0.00017917,2]
[365168127,1749510761407,676.13,0.00017095,2]
[365168128,1749510761443,1165.11,0.00016602,2]
[365168129,1749510761473,490.0,0.00016931,2]
[365168130,1749510761509,490.0,0.00016931,2]
[365168131,1749510761545,676.13,0.0001726,2]
[365168132,1749510761575,1165.11,0.00016767,2]
[365168133,1749510761611,490.0,0.00017095,2]
[365168134,1749510761646,490.0,0.00017095,2]
[365168135,1749510761759,1165.11,0.00016931,2]
[365168136,1749510761790,676.13,0.00017424,2]
[365168137,1749510761830,490.0,0.0001726,2]
[365168138,1749510761870,490.0,0.0001726,2]
[365168139,1749510762031,676.13,0.00017589,2]
[365168140,1749510762068,1165.11,0.00017095,2]
[365168141,1749510762100,490.0,0.00017424,2]
[365168142,1749510762138,490.0,0.00017424,2]
[365168143,1749510762290,676.13,0.00017753,2]
[365168144,1749510762322,1165.11,0.0001726,2]
[365168145,1749510762388,490.0,0.00017589,2]
[365168146,1749510762540,676.13,0.00017917,2]
[365168147,1749510762597,1165.11,0.00017424,2]
[365168148,1749510762722,490.0,0.00017589,2]
[365168149,1749510762753,490.0,0.00017753,2]
[365168150,1749510762783,490.0,0.00016438,2]
[365168151,1749510762879,1165.11,0.00017589,2]
[365168152,1749510762918,490.0,0.00017753,2]
[365168153,1749510762954,523.17929615,0.00016602,2]
[365168154,1749510762985,375.51622927,0.00017917,2]
[365168155,1749510763130,1165.11,0.00017753,2]
[365168156,1749510763180,490.0,0.00017917,2]
[365168157,1749510763252,514.24,0.00016438,2]
[365168158,1749510763368,1165.11,0.00017917,2]
[365168159,1749510763659,514.24,0.00016602,2]
[365168160,1749510763894,490.0,0.00016438,2]
[365168161,1749510763967,514.24,0.00016767,2]
[365168162,1749510764204,490.0,0.00016602,2]
[365168163,1749510764241,514.24,0.00016931,2]
[365168164,1749510764511,490.0,0.00016767,2]
[365168165,1749510764643,514.24,0.00017095,2]
[365168166,1749510764687,490.0,0.00016931,2]
[365168167,1749510764823,514.24,0.0001726,2]
[365168168,1749510764930,490.0,0.00017095,2]
[365168169,1749510764969,490.0,0.00016438,2]
[365168170,1749510765005,2547.34,0.00016438,2]
[365168171,1749510765073,514.24,0.00017424,2]
[365168172,1749510765198,490.0,0.0001726,2]
[365168173,1749510765230,2547.34,0.00016602,2]
[365168174,1749510765266,490.0,0.00016602,2]
[365168175,1749510765339,514.24,0.00017589,2]
[365168176,1749510765624,490.0,0.00017424,2]
[365168177,1749510765660,490.0,0.00016767,2]
[365168178,1749510765700,2547.34,0.00016767,2]
[365168179,1749510765743,514.24,0.00017753,2]
[365168180,1749510765785,490.0,0.00016931,2]
[365168181,1749510765816,490.0,0.00017589,2]
[365168182,1749510765858,2547.34,0.00016931,2]
[365168183,1749510765895,514.24,0.00017917,2]
[365168184,1749510765974,490.0,0.00017095,2]
[365168185,1749510766056,2547.34,0.00017095,2]
[365168186,1749510766214,480.0,0.00016438,2]
[365168187,1749510766578,490.0,0.0001726,2]
[365168188,1749510766626,2547.34,0.0001726,2]
[365168189,1749510766659,490.0,0.00017753,2]
[365168190,1749510766697,490.0,0.00017424,2]
[365168191,1749510766751,637.40928603,0.00017917,2]
[365168192,1749510766783,2547.34,0.00017424,2]
[365168193,1749510766818,490.0,0.00017589,2]
[365168194,1749510766903,2547.34,0.00017589,2]
[365168195,1749510767011,490.0,0.00017753,2]
[365168196,1749510767158,2547.34,0.00017753,2]
[365168197,1749510767248,490.0,0.00017917,2]
[365168198,1749510767438,2547.34,0.00017917,2]
[365168199,1749510767897,490.0,0.00016438,2]
[365168200,1749510768151,490.0,0.00016602,2]
[365168201,1749510768408,490.0,0.00016767,2]
[365168202,1749510768688,490.0,0.00016931,2]
[365168203,1749510768724,490.0,0.00016438,2]
[365168204,1749510768945,490.0,0.00017095,2]
[365168205,1749510768996,490.0,0.00016602,2]
[365168206,1749510769198,490.0,0.00016438,2]
[365168207,1749510769232,490.0,0.0001726,2]
[365168208,1749510769279,490.0,0.00016767,2]
[365168209,1749510769455,490.0,0.00016602,2]
[365168210,1749510769488,490.0,0.00017424,2]
[365168211,1749510769525,490.0,0.00016438,2]
[365168212,1749510769558,490.0,0.00016931,2]
[365168213,1749510769719,490.0,0.00017589,2]
[365168214,1749510769754,490.0,0.00016767,2]
[365168215,1749510769786,480.0,0.00016438,2]
[365168216,1749510769819,490.0,0.00017095,2]
[365168217,1749510769861,470.0,0.00016602,2]
[365168218,1749510770008,490.0,0.00017753,2]
[365168219,1749510770047,490.0,0.00016931,2]
[365168220,1749510770280,490.0,0.0001726,2]
[365168221,1749510770326,490.0,0.00017917,2]
[365168222,1749510770365,490.0,0.00017095,2]
[365168223,1749510770398,490.0,0.00017424,2]
[365168224,1749510770435,1359.23,0.00016438,2]
[365168225,1749510770552,490.0,0.0001726,2]
[365168226,1749510770585,490.0,0.00017589,2]
[365168227,1749510770721,1359.23,0.00016602,2]
[365168228,1749510770802,490.0,0.00017424,2]
[365168229,1749510770834,490.0,0.00017753,2]
[365168230,1749510770972,1359.23,0.00016767,2]
[365168231,1749510771070,490.0,0.00017589,2]
[365168232,1749510771102,349.76374497,0.00017917,2]
[365168233,1749510771218,1359.23,0.00016931,2]
[365168234,1749510771332,490.0,0.00017753,2]
[365168235,1749510771593,490.0,0.00017917,2]
[365168236,1749510771852,1359.23,0.00017095,2]
[365168237,1749510771886,490.0,0.00016438,2]
[365168238,1749510771917,490.0,0.00016438,2]
[365168239,1749510772119,1359.23,0.0001726,2]
[365168240,1749510772153,490.0,0.00016602,2]
[365168241,1749510772185,432.08416639,0.00016602,2]
[365168242,1749510772371,490.0,0.00016767,2]
[365168243,1749510772495,490.0,0.00016438,2]
[365168244,1749510772648,490.0,0.00016931,2]
[365168245,1749510772753,490.0,0.00016602,2]
[365168246,1749510772899,592.87566436,0.00017095,2]
[365168247,1749510773172,490.0,0.00016438,2]
[365168248,1749510773393,490.0,0.00016767,2]
[365168249,1749510773445,490.0,0.00016602,2]
[365168250,1749510773652,490.0,0.00016931,2]
[365168251,1749510773702,490.0,0.00016767,2]
[365168252,1749510773780,480.0,0.00016438,2]
[365168253,1749510773883,490.0,0.00017095,2]
[365168254,1749510773931,490.0,0.00016931,2]
[365168255,1749510774075,1384.14,0.00016438,2]
[365168256,1749510774133,490.0,0.0001726,2]
[365168257,1749510774202,490.0,0.00017095,2]
[365168258,1749510774321,1384.14,0.00016602,2]
[365168259,1749510774391,490.0,0.00017424,2]
[365168260,1749510774475,490.0,0.0001726,2]
[365168261,1749510774560,1384.14,0.00016767,2]
[365168262,1749510774654,490.0,0.00017589,2]
[365168263,1749510774846,1384.14,0.00016931,2]
[365168264,1749510774932,490.0,0.00017753,2]
[365168265,1749510775077,490.0,0.00017424,2]
[365168266,1749510775128,1384.14,0.00017095,2]
[365168267,1749510775175,958.51,0.00016438,2]
[365168268,1749510775228,490.0,0.00017917,2]
[365168269,1749510775332,490.0,0.00017589,2]
[365168270,1749510775451,958.51,0.00016602,2]
[365168271,1749510775502,1384.14,0.0001726,2]
[365168272,1749510775704,1384.14,0.00017424,2]
[365168273,1749510775754,958.51,0.00016767,2]
[365168274,1749510775949,490.0,0.00017753,2]
[365168275,1749510776017,1384.14,0.00017589,2]
[365168276,1749510776119,958.51,0.00016931,2]
[365168277,1749510776422,490.0,0.00017917,2]
[365168278,1749510776527,1384.14,0.00017753,2]
[365168279,1749510776831,958.51,0.00017095,2]
[365168280,1749510777231,1384.14,0.00017917,2]
[365168281,1749510777280,958.51,0.0001726,2]
[365168282,1749510777343,958.51,0.00017424,2]
[365168283,1749510777397,490.0,0.00016438,2]
[365168284,1749510777453,958.51,0.00017589,2]
[365168285,1749510777501,490.0,0.00016602,2]
[365168286,1749510777578,958.51,0.00017753,2]
[365168287,1749510777626,490.0,0.00016767,2]
[365168288,1749510777679,1359.23,0.00017424,2]
[365168289,1749510777733,958.51,0.00017917,2]
[365168290,1749510777783,490.0,0.00016931,2]
[365168291,1749510777961,1359.23,0.00017589,2]
[365168292,1749510778068,490.0,0.00017095,2]
[365168293,1749510778119,1359.23,0.00017753,2]
[365168294,1749510778178,490.0,0.0001726,2]
[365168295,1749510778254,713.6,0.00016438,2]
[365168296,1749510778319,490.0,0.00016438,2]
[365168297,1749510778385,1359.23,0.00017917,2]
[365168298,1749510778433,490.0,0.00017424,2]
[365168299,1749510778540,713.6,0.00016602,2]
[365168300,1749510778596,490.0,0.00016602,2]
[365168301,1749510778654,490.0,0.00017589,2]
[365168302,1749510778783,713.6,0.00016767,2]
[365168303,1749510778835,490.0,0.00016767,2]
[365168304,1749510778992,490.0,0.00017753,2]
[365168305,1749510779092,713.6,0.00016931,2]
[365168306,1749510779150,490.0,0.00016931,2]
[365168307,1749510779216,490.0,0.00017917,2]
[365168308,1749510779362,713.6,0.00017095,2]
[365168309,1749510779417,1582.24,0.00016438,2]
[365168310,1749510779473,490.0,0.00017095,2]
[365168311,1749510779608,713.6,0.0001726,2]
[365168312,1749510779658,1582.24,0.00016602,2]
[365168313,1749510779708,490.0,0.0001726,2]
[365168314,1749510779765,376.56726658,0.00016438,2]
[365168315,1749510779854,713.6,0.00017424,2]
[365168316,1749510779916,1582.24,0.00016767,2]
[365168317,1749510779976,490.0,0.00017424,2]
[365168318,1749510780103,713.6,0.00017589,2]
[365168319,1749510780179,1582.24,0.00016931,2]
[365168320,1749510780238,490.0,0.00017589,2]
[365168321,1749510780345,713.6,0.00017753,2]
[365168322,1749510780451,1582.24,0.00017095,2]
[365168323,1749510780504,490.0,0.00017753,2]
[365168324,1749510780696,713.6,0.00017917,2]
[365168325,1749510780744,1582.24,0.0001726,2]
[365168326,1749510781245,490.0,0.00017917,2]
[365168327,1749510781319,1582.24,0.00017424,2]
[365168328,1749510781384,1582.24,0.00017589,2]
[365168329,1749510781446,638.01,0.00016438,2]
[365168330,1749510781510,1582.24,0.00017753,2]
[365168331,1749510781559,638.01,0.00016602,2]
[365168332,1749510781694,1582.24,0.00017917,2]
[365168333,1749510781743,638.01,0.00016767,2]
[365168334,1749510782047,638.01,0.00016931,2]
[365168335,1749510782216,490.0,0.00016438,2]
[365168336,1749510782321,638.01,0.00017095,2]
[365168337,1749510782470,490.0,0.00016602,2]
[365168338,1749510782725,490.0,0.00016767,2]
[365168339,1749510782934,490.0,0.00016438,2]
[365168340,1749510782984,490.0,0.00016931,2]
[365168341,1749510783187,490.0,0.00016602,2]
[365168342,1749510783242,490.0,0.00017095,2]
[365168343,1749510783442,490.0,0.00016767,2]
[365168344,1749510783550,490.0,0.0001726,2]
[365168345,1749510783806,490.0,0.00016931,2]
[365168346,1749510783867,490.0,0.00017424,2]
[365168347,1749510784034,490.0,0.00017095,2]
[365168348,1749510784179,490.0,0.00017589,2]
[365168349,1749510784287,490.0,0.0001726,2]
[365168350,1749510784370,490.0,0.00017753,2]
[365168351,1749510784551,490.0,0.00017424,2]
[365168352,1749510784685,490.0,0.00016438,2]
[365168353,1749510784740,490.0,0.00017917,2]
[365168354,1749510784833,490.0,0.00017589,2]
[365168355,1749510784888,490.0,0.00016602,2]
[365168356,1749510785087,490.0,0.00017753,2]
[365168357,1749510785153,490.0,0.00016767,2]
[365168358,1749510785211,783.64,0.00016438,2]
[365168359,1749510785356,169.82364249,0.00017917,2]
[365168360,1749510785424,783.64,0.00016602,2]
[365168361,1749510785475,490.0,0.00016931,2]
[365168362,1749510785529,490.0,0.00016438,2]
[365168363,1749510785651,783.64,0.00016767,2]
[365168364,1749510785702,490.0,0.00017095,2]
[365168365,1749510785900,490.0,0.0001726,2]
[365168366,1749510785954,783.64,0.00016931,2]
[365168367,1749510786053,490.0,0.00016438,2]
[365168368,1749510786107,490.0,0.00016602,2]
[365168369,1749510786171,490.0,0.00017424,2]
[365168370,1749510786230,783.64,0.00017095,2]
[365168371,1749510786298,490.0,0.00016602,2]
[365168372,1749510786358,490.0,0.00016767,2]
[365168373,1749510786422,490.0,0.00017589,2]
[365168374,1749510786488,783.64,0.0001726,2]
[365168375,1749510786571,242.08148287,0.00016767,2]
[365168376,1749510786623,490.0,0.00016931,2]
[365168377,1749510786685,490.0,0.00017753,2]
[365168378,1749510787100,783.64,0.00017424,2]
[365168379,1749510787153,490.0,0.00017095,2]
[365168380,1749510787207,490.0,0.00017917,2]
[365168381,1749510787589,783.64,0.00017589,2]
[365168382,1749510787721,490.0,0.0001726,2]
[365168383,1749510787858,783.64,0.00017753,2]
[365168384,1749510787908,490.0,0.00016438,2]
[365168385,1749510787972,783.64,0.00017917,2]
[365168386,1749510788021,490.0,0.00016602,2]
[365168387,1749510788073,732.76,0.00016438,2]
[365168388,1749510788135,490.0,0.00017424,2]
[365168389,1749510788190,732.76,0.00016602,2]
[365168390,1749510788243,490.0,0.00016767,2]
[365168391,1749510788348,490.0,0.00017589,2]
[365168392,1749510788466,732.76,0.00016767,2]
[365168393,1749510788515,490.0,0.00016931,2]
[365168394,1749510788572,638.01,0.0001726,2]
[365168395,1749510788622,490.0,0.00017753,2]
[365168396,1749510788681,490.0,0.00017095,2]
[365168397,1749510788733,732.76,0.00016931,2]
[365168398,1749510788792,638.01,0.00017424,2]
[365168399,1749510788842,490.0,0.00017917,2]
[365168400,1749510788898,490.0,0.0001726,2]
[365168401,1749510788948,732.76,0.00017095,2]
[365168402,1749510789009,638.01,0.00017589,2]
[365168403,1749510789068,490.0,0.00017424,2]
[365168404,1749510789122,732.76,0.0001726,2]
[365168405,1749510789275,638.01,0.00017753,2]
[365168406,1749510789338,490.0,0.00017589,2]
[365168407,1749510789403,732.76,0.00017424,2]
[365168408,1749510789508,490.0,0.00017753,2]
[365168409,1749510789566,732.76,0.00017589,2]
[365168410,1749510789624,638.01,0.00017917,2]
[365168411,1749510789689,490.0,0.00017917,2]
[365168412,1749510789739,732.76,0.00017753,2]
[365168413,1749510789869,600.9,0.00016438,2]
[365168414,1749510789984,732.76,0.00017917,2]
[365168415,1749510790226,600.9,0.00016602,2]
[365168416,1749510790516,600.9,0.00016767,2]
[365168417,1749510790742,600.9,0.00016931,2]
[365168418,1749510791235,600.9,0.00017095,2]
[365168419,1749510791290,490.0,0.00016438,2]
[365168420,1749510791419,490.0,0.00016602,2]
[365168421,1749510791474,600.9,0.0001726,2]
[365168422,1749510791540,558.36,0.00016438,2]
[365168423,1749510791601,490.0,0.00016767,2]
[365168424,1749510791652,600.9,0.00017424,2]
[365168425,1749510791714,558.36,0.00016602,2]
[365168426,1749510791778,490.0,0.00016438,2]
[365168427,1749510791838,490.0,0.00016931,2]
[365168428,1749510791889,600.9,0.00017589,2]
[365168429,1749510791963,558.36,0.00016767,2]
[365168430,1749510792036,490.0,0.00016602,2]
[365168431,1749510792101,600.9,0.00017753,2]
[365168432,1749510792202,558.36,0.00016931,2]
[365168433,1749510792340,600.9,0.00017917,2]
[365168434,1749510792458,490.0,0.00016767,2]
[365168435,1749510792511,490.0,0.00017095,2]
[365168436,1749510792560,558.36,0.00017095,2]
[365168437,1749510792671,490.0,0.0001726,2]
[365168438,1749510792720,490.0,0.00016931,2]
[365168439,1749510792768,558.36,0.0001726,2]
[365168440,1749510792930,490.0,0.00017095,2]
[365168441,1749510792981,558.36,0.00017424,2]
[365168442,1749510793030,490.0,0.00017424,2]
[365168443,1749510793178,239.53996232,0.0001726,2]
[365168444,1749510793229,558.36,0.00017589,2]
[365168445,1749510793281,490.0,0.00017589,2]
[365168446,1749510793484,490.0,0.00017753,2]
[365168447,1749510793539,558.36,0.00017753,2]
[365168448,1749510793743,490.0,0.00017917,2]
[365168449,1749510793798,558.36,0.00017917,2]
[365168450,1749510794398,480.0,0.00016438,2]
[365168451,1749510795291,490.0,0.00016438,2]
[365168452,1749510795503,490.0,0.00016602,2]
[365168453,1749510795556,490.0,0.00016438,2]
[365168454,1749510795607,435.27334261,0.00016438,2]
[365168455,1749510795718,490.0,0.00016438,2]
[365168456,1749510795780,490.0,0.00016602,2]
[365168457,1749510795840,490.0,0.00016767,2]
[365168458,1749510796028,490.0,0.00016602,2]
[365168459,1749510796082,490.0,0.00016931,2]
[365168460,1749510796139,490.0,0.00016767,2]
[365168461,1749510796271,490.0,0.00016767,2]
[365168462,1749510796321,490.0,0.00017095,2]
[365168463,1749510796373,490.0,0.00016931,2]
[365168464,1749510796430,490.0,0.00016438,2]
[365168465,1749510796537,490.0,0.0001726,2]
[365168466,1749510796586,490.0,0.00017095,2]
[365168467,1749510796640,490.0,0.00016931,2]
[365168468,1749510796704,490.0,0.00016602,2]
[365168469,1749510796842,490.0,0.0001726,2]
[365168470,1749510797029,490.0,0.00017424,2]
[365168471,1749510797371,490.0,0.00016767,2]
[365168472,1749510797433,490.0,0.00017424,2]
[365168473,1749510797496,490.0,0.00017095,2]
[365168474,1749510797947,490.0,0.00016931,2]
[365168475,1749510798010,490.0,0.00017589,2]
[365168476,1749510798121,490.0,0.00017589,2]
[365168477,1749510798177,490.0,0.0001726,2]
[365168478,1749510798333,490.0,0.00017095,2]
[365168479,1749510798386,490.0,0.00017753,2]
[365168480,1749510798476,490.0,0.00017424,2]
[365168481,1749510798526,480.0,0.00016438,2]
[365168482,1749510798578,490.0,0.00017917,2]
[365168483,1749510798630,490.0,0.00017753,2]
[365168484,1749510798686,490.0,0.00017589,2]
[365168485,1749510798824,490.0,0.00017753,2]
[365168486,1749510798880,490.0,0.0001726,2]
[365168487,1749510798950,490.0,0.00017917,2]
[365168488,1749510799007,490.0,0.00017424,2]
[365168489,1749510799058,490.0,0.00017917,2]
[365168490,1749510799144,490.0,0.00017589,2]
[365168491,1749510799296,490.0,0.00017753,2]
[365168492,1749510799628,490.0,0.00017917,2]
[365168493,1749510799707,490.0,0.00016438,2]
[365168494,1749510799830,490.0,0.00016602,2]
[365168495,1749510800074,490.0,0.00016767,2]
[365168496,1749510800326,258.38,0.00016931,2]
[365168497,1749510801138,490.0,0.00016438,2]
[365168498,1749510801351,490.0,0.00016602,2]
[365168499,1749510801539,920.17,0.00016438,2]
[365168500,1749510801614,490.0,0.00016767,2]
[365168501,1749510801836,920.17,0.00016602,2]
[365168502,1749510801886,490.0,0.00016931,2]
[365168503,1749510802099,920.17,0.00016767,2]
[365168504,1749510802151,387.132914,0.00017095,2]
[365168505,1749510802350,920.17,0.00016931,2]
[365168506,1749510802614,920.17,0.00017095,2]
[365168507,1749510802909,920.17,0.0001726,2]
[365168508,1749510803250,490.0,0.00016438,2]
[365168509,1749510803348,490.0,0.00016602,2]
[365168510,1749510803415,920.17,0.00017424,2]
[365168511,1749510803472,480.0,0.00016438,2]
[365168512,1749510803522,920.17,0.00017589,2]
[365168513,1749510803573,490.0,0.00016767,2]
[365168514,1749510803789,920.17,0.00017753,2]
[365168515,1749510803841,490.0,0.00016931,2]